Cogmind - Beta 16.1 @@@ ROGUE MODE // 2026.02.13 @ 20:10:09 Player: Genericgamer16 Result: Destroyed by W3-5S5(R) with Subdweller Beam Cannon Performance ------------- Evolutions (0) 0 Regions Visited (3) 600 Robots Destroyed (14) 70 Value Destroyed (407) 407 Prototype IDs (2) 40 Alien Tech Used (0) 0 Bonus (0) 0 TOTAL SCORE: 1117 Bonus ------- None Cogmind --------- Core Integrity 0/250 Matter 275/300 Energy 200/200 System Corruption 0% Temperature Cool (9) Movement Walking (190) Ox1 Location -10/Subcaves Parts ------- > --- POWER (1) -------- Subdweller Power Source > --- PROPULSION (2) --- Improved Aluminum Leg > --- UTILITY (2) ------ Medium Storage Unit Signal Interpreter > --- WEAPON (2) ------- Beam Cannon > --- INVENTORY (10) --- Improved Flight Unit Improved Flight Unit Improved Flight Unit Improved Flight Unit Machine Analyzer Grenade Launcher Peak State ------------ > --- POWER ------------ Light Nuclear Core > --- PROPULSION ------- Light Treads Light Treads > --- UTILITY ---------- Medium Storage Unit Signal Interpreter > --- WEAPON ----------- Heavy Assault Rifle Mining Laser > --- INVENTORY -------- Ion Engine Light Ion Engine Improved Aluminum Leg Improved Flight Unit Improved Flight Unit Improved Flight Unit Improved Flight Unit Visual Processing Unit Beam Cannon Light Assault Rifle [Rating: 12] Favorites ----------- Power Light Nuclear Core Engine Light Ion Engine Power Core Light Nuclear Core Propulsion Light Treads Treads Light Treads Leg Improved Aluminum Leg Utility Medium Storage Unit Device Tractor Beam Storage Medium Storage Unit Processor Signal Interpreter Weapon Medium Laser Energy Gun Medium Laser Energy Cannon Beam Cannon Ballistic Gun Assault Rifle Special Weapon Mining Laser Build | -11 -10 -10 -10 ------- Run | Yrd Mat Min Sub Slots Evolved . | . . . . Power . | . . . . Propulsion . | . . . . Utility . | . . . . Weapon . | . . . . Parts Attached 20 | 6 6 5 3 Power 3 | 1 1 . 1 Engine 2 | 1 . . 1 Core 1 | . 1 . . Reactor . | . . . . Propulsion 5 | 2 . 2 1 Treads 4 | 2 . 2 . Leg 1 | . . . 1 Wheel . | . . . . Hover . | . . . . Flight . | . . . . Utility 5 | 1 4 . . Device 1 | . 1 . . Storage 3 | 1 2 . . Processor 1 | . 1 . . Hackware . | . . . . Protection . | . . . . Artifact . | . . . . Weapon 7 | 2 1 3 1 Energy Gun 2 | 1 . 1 . Energy Cannon 1 | . . 1 . Ballistic Gun 2 | 1 . 1 . Ballistic Cannon . | . . . . Launcher . | . . . . Special Weapon 2 | . 1 . 1 Impact Weapon . | . . . . Slashing Weapon . | . . . . Piercing Weapon . | . . . . Special Melee Weapon . | . . . . Unidentified Prototypes . | . . . . Parts Lost 6 | . . . 6 Power 1 | . . . 1 Propulsion 2 | . . . 2 Utility . | . . . . Weapon 3 | . . . 3 Highest Loss Streak 6 | . . . 6 To Critical Strikes . | . . . . Average Backups 9 | 3 9 10 9 Power 1 | . 1 1 . Propulsion 3 | 2 3 5 4 Utility 1 | . 1 1 . Weapon 2 | . 2 1 1 Tool/Special . | . . . . Unused Backups 19 | . 9 2 8 Power 3 | . 1 1 1 Propulsion 10 | . 6 . 4 Utility 2 | . . . 2 Weapon 4 | . 2 1 1 Tool/Special . | . . . . Average Slot Usage (%) 98 | . 98 100 90 Engine 2 | . 2 . 3 Core 11 | . 11 14 7 Treads 27 | . 27 28 20 Device 4 | . 5 . . Storage 14 | . 14 14 14 Processor 9 | . 7 14 14 Energy Gun 12 | . 14 8 11 Energy Cannon 1 | . . 5 5 Ballistic Gun 12 | . 13 10 8 Peak Build Rating 12 | 6 11 12 12 Average Rating 9 | 3 9 11 10 On Entrance 7 | . 6 11 12 Avg Prop Armor Cover (%) . | . . . . Naked Turns . | . . . . Heaviest Build 21 | 12 20 21 20 Greatest Support 40 | 40 40 40 40 Greatest Overweight (x) . | . . . . Average Overweight (x) . | . . . . Largest Inventory Capacity 10 | 8 10 10 10 Average Capacity 9 | 6 9 10 10 Most Carried 10 | 8 10 10 10 Average Carried 9 | 3 9 9 8 Final Capacity 10 | 8 10 10 10 Final Carried 10 | 6 10 10 6 Class Distribution -------------------- 79% | Mutant 20% | Scavenger-Mutant Dominant Class ---------------- Mutant | -10/Materials Scavenger-Mutant | -10/Mines Scavenger-Mutant | -10/Subcaves Resources | -11 -10 -10 -10 ----------- Run | Yrd Mat Min Sub Matter Collected 516 | 260 119 131 6 Remotely 76 | . 76 . . Salvage Created 424 | . 247 138 39 Parts 30 | . 20 6 4 Haulers Intercepted . | . . . . Recyclers Shooed . | . . . . Parts Field Recycled . | . . . . Retrieved Matter . | . . . . Parts Self-Destructed . | . . . . Prevented . | . . . . Parts Restored . | . . . . Kills | -11 -10 -10 -10 ------- Run | Yrd Mat Min Sub Combat Hostiles Destroyed 12 | . 7 4 1 Guns 10 | . 7 2 1 Cannons 2 | . . 2 . Classes Destroyed 6 | . 4 1 1 Worker 1 | . 1 . . Watcher 1 | . 1 . . Swarmer 3 | . 3 . . Grunt 6 | . 4 2 . Sentry 2 | . . 2 . Subdweller 1 | . . . 1 Best Kill Streak 4 | . 4 2 1 Combat Bots Only 3 | . 3 2 1 Max Kills in Single Turn 2 | . 2 1 1 Gunslinging . | . . . . Exploded . | . . . . Melee . | . . . . Uniques/NPCs Destroyed . | . . . . Combat | -11 -10 -10 -10 -------- Run | Yrd Mat Min Sub Hostile Shots Fired 92 | . 38 27 27 Missed 22 | . 11 5 6 Hits 70 | . 27 22 21 Projectile 70 | . 27 22 21 Critical Strikes 2 | . . 2 . Damage Taken 1172 | . 283 305 584 Core 258 | . 65 42 151 Absorbed by Shields . | . . . . Core Remaining (%) 100 | 100 . . . Volleys Fired 56 | . 23 15 18 Largest 2 | . 2 2 2 Hottest 150 | . 70 150 110 Shots Fired 101 | . 46 26 29 Gun 78 | . 46 16 16 Cannon 19 | . . 7 12 Launcher . | . . . . Special 4 | . . 3 1 Kinetic 36 | . 23 7 6 Thermal 65 | . 23 19 23 Explosive . | . . . . Electromagnetic . | . . . . Robot Hit Streak 34 | . 8 7 34 Robot Miss Streak 5 | . 5 1 . Penetration Max . | . . . . Secondary Targets 1 | . 1 . . Max Gunslinging Chain 1 | . 1 . . Shots Hit Robots 78 | . 26 23 29 Core Hits 23 | . 14 7 2 Critical Kills . | . . . . Critical Parts Destroyed . | . . . . Critical Strikes 2 | . 2 . . Burn 2 | . 2 . . Melee Attacks . | . . . . Impact . | . . . . Slashing . | . . . . Piercing . | . . . . Sneak Attacks . | . . . . Combat Hostiles . | . . . . Follow-up Attacks . | . . . . Damage Inflicted 780 | . 356 366 58 Guns 604 | . 356 190 58 Cannons 104 | . . 104 . Explosions . | . . . . Melee . | . . . . Ramming . | . . . . Kinetic 291 | . 167 91 33 Thermal 489 | . 189 275 25 Explosive . | . . . . Electromagnetic . | . . . . Impact . | . . . . Slashing . | . . . . Piercing . | . . . . Highest Corruption . | . . . . Average Corruption . | . . . . Corruption Purged . | . . . . Corruption Blocked . | . . . . Overload Shots . | . . . . Overflow Damage . | . . . . Projectiles . | . . . . Explosions . | . . . . Melee . | . . . . Knockbacks . | . . . . Impact . | . . . . Kinetic . | . . . . Secondary . | . . . . Self-Inflicted Damage . | . . . . Shots . | . . . . Rammed . | . . . . Targets Rammed . | . . . . Kicked . | . . . . Crushed . | . . . . Highest Temperature 332 | . 120 332 8 Average Temperature 98 | . 51 161 4 Received Heat Transfer 471 | . 96 186 189 Effects 4 | . . 4 . Shutdowns 1 | . . 1 . Interference 3 | . . 3 . Siege Activations . | . . . . Martial Activations . | . . . . Shielding Activations . | . . . . Robots Disrupted . | . . . . Combat Hostiles . | . . . . Robots Corrupted . | . . . . Combat Hostiles . | . . . . Parts Fried . | . . . . Impact Corruptions . | . . . . Robots Melted . | . . . . Combat Hostiles . | . . . . Parts Melted 2 | . . . 2 Heat Transferred 1445 | . 703 668 74 Parts Sabotaged . | . . . . Parts Stolen . | . . . . Parts Stripped . | . . . . Power Chain Reactions . | . . . . Alert | -11 -10 -10 -10 ------- Run | Yrd Mat Min Sub Maximum Alert Level . | . . . . Low Security (%) 100 | 100 100 100 . Level 1 . | . . . . Level 2 . | . . . . Level 3 . | . . . . Level 4 . | . . . . Level 5 . | . . . . High Security . | . . . . Max Security . | . . . . Peak Influence 78 | . 78 40 . Initial 6 | . . 6 . Average 20 | . 23 18 . Influence Increases 317 | . 227 90 . Destroy 0b10 Robot/C 220 | . 140 80 . Destroy 0b10 Robot/NC 10 | . 10 . . Destroy Leader 42 | . 32 10 . Successful Hack 14 | . 14 . . Destroy Structure 1 | . 1 . . Lose Combat Pursuer 30 | . 30 . . Influence Decreases 317 | . 210 97 10 Entered New Map 17 | . . 11 6 Time Decay 300 | . 210 86 4 Squads Dispatched 2 | . 2 . . Investigation 1 | . 1 . . Extermination . | . . . . Reinforcement 1 | . 1 . . Assault . | . . . . Garrison . | . . . . Intercept . | . . . . Searches Triggered . | . . . . Construction Impeded . | . . . . Haulers Reinforced . | . . . . Active Scanning Responses . | . . . . Cargo Convoy Interrupts . | . . . . Stealth | -11 -10 -10 -10 --------- Run | Yrd Mat Min Sub Distress Signals . | . . . . Communications Jammed . | . . . . Distress Signals . | . . . . Times Spotted 20 | . 14 4 2 Peak Tracking Total 4 | . 4 2 1 Tactical Retreats 1 | . 1 . . Traps | -11 -10 -10 -10 ------- Run | Yrd Mat Min Sub Traps Triggered 3 | . 3 . . Indirectly . | . . . . Trap Hack Attempts . | . . . . Triggered . | . . . . Disarmed . | . . . . Reprogrammed . | . . . . Reused . | . . . . Traps Extracted . | . . . . Installed . | . . . . Triggered . | . . . . Machines | -11 -10 -10 -10 ---------- Run | Yrd Mat Min Sub Machines Disabled . | . . . . Max in Single Turn . | . . . . Machines Repaired . | . . . . Machines Dismantled . | . . . . Machines Sabotaged . | . . . . Overloaded Fab Kills . | . . . . Hacking | -11 -10 -10 -10 --------- Run | Yrd Mat Min Sub Machines Accessed 7 | . 7 . . Terminals 6 | . 6 . . Fabricators . | . . . . Repair Stations . | . . . . Recycling Units 1 | . 1 . . Scanalyzers . | . . . . Garrison Access . | . . . . Total Hacks 21 | . 21 . . Successful 4 | . 4 . . Failed 17 | . 17 . . Catastrophic 3 | . 3 . . Database Lockouts . | . . . . Manual 16 | . 16 . . Terminals 19 | . 19 . . Fabricators . | . . . . Repair Stations . | . . . . Recycling Units 2 | . 2 . . Scanalyzers . | . . . . Garrison Access . | . . . . Terminal Hacks 4 | . 4 . . Prototype ID Bank 1 | . 1 . . Branch Access Points 1 | . 1 . . Terminal Index 1 | . 1 . . Hauler Manifests 1 | . 1 . . Fabricator Hacks . | . . . . Repair Station Hacks . | . . . . Recycling Unit Hacks . | . . . . Scanalyzer . | . . . . Garrison Access Hacks . | . . . . Unauthorized Hacks . | . . . . Terminals . | . . . . Fabricators . | . . . . Repair Stations . | . . . . Recycling Units . | . . . . Scanalyzers . | . . . . Garrison Access . | . . . . Data Cores Recovered . | . . . . Used . | . . . . Hacking Detections 7 | . 7 . . Full Trace Events 1 | . 1 . . Feedback Events . | . . . . Feedback Blocked . | . . . . Robot Schematics Acquired . | . . . . Robots Built . | . . . . Authchips . | . . . . Time . | . . . . Total Robot Build Rating . | . . . . Part Schematics Acquired . | . . . . Parts Built . | . . . . Authchips . | . . . . Time . | . . . . Total Part Build Rating . | . . . . Part Studies Acquired . | . . . . Parts Repaired . | . . . . Time . | . . . . Parts Recycled . | . . . . Recycled Matter . | . . . . Retrieved Matter . | . . . . Retrieved Components . | . . . . Parts Scanalyzed . | . . . . Part Schematics Acquired . | . . . . Parts Damaged . | . . . . Bothacking | -11 -10 -10 -10 ------------ Run | Yrd Mat Min Sub Used RIF Installer . | . . . . Robots Hacked . | . . . . Non-combat . | . . . . Combat . | . . . . Robot Hacks Applied . | . . . . Relay Couplers Released . | . . . . Fabnet Peak Effective % . | . . . . Robots Rewired . | . . . . Allies Hacked . | . . . . Hacks Repelled . | . . . . Allies | -11 -10 -10 -10 -------- Run | Yrd Mat Min Sub Total Allies . | . . . . Largest Group . | . . . . Highest-Rated Group . | . . . . Highest-Rated Ally . | . . . . Total Orders . | . . . . Ally Attacks . | . . . . Total Damage . | . . . . Kills . | . . . . Allies Corrupted . | . . . . Allies Melted . | . . . . Intel | -11 -10 -10 -10 ------- Run | Yrd Mat Min Sub Active Infowar (turns) . | . . . . Robot Analysis Total . | . . . . Derelict Logs Recovered . | . . . . Drone Launches . | . . . . Drone Recoveries . | . . . . Exploration | -11 -10 -10 -10 ------------- Run | Yrd Mat Min Sub Turns Passed 1150 | 95 751 206 98 Spaces Moved 533 | 52 366 87 28 Core 7 | 7 . . . Treads 526 | 45 366 87 28 Legs . | . . . . Wheels . | . . . . Hover . | . . . . Flight . | . . . . Fastest Speed 50 | 50 160 160 160 Average Speed 158 | 145 160 160 160 Slowest Speed 160 | 160 160 160 160 Overloaded Moves . | . . . . Propulsion Burnouts . | . . . . Robots Hopped . | . . . . Potential Cave-ins . | . . . . Cave-ins Triggered . | . . . . Exploration Rate (%) 21 | 4 61 18 3 Regions Visited 3 Branch Regions 2 Pre-discovered Areas . | . . . . Known Exits Taken 2 | . 1 1 . Unknown Exits Taken 1 | 1 . . . Scrap Searched . | . . . . Spaces Dug . | . . . . Terrain Destroyed . | . . . . Melee . | . . . . Projectile . | . . . . AOE . | . . . . Terrain Rammed . | . . . . Walls Destroyed . | . . . . Machines Disabled . | . . . . Actions | -11 -10 -10 -10 --------- Run | Yrd Mat Min Sub Total 739 | 71 491 123 54 Wait 71 | 3 64 4 . Move 530 | 51 365 86 28 Hop . | . . . . Pick Up 33 | 11 16 4 2 Fast Attach 7 | 1 5 1 . Attach 10 | 5 1 . 4 Detach . | . . . . Swap 9 | . 3 6 . Drop 23 | . 14 7 2 Fire 56 | . 23 15 18 Melee . | . . . . Ram . | . . . . Kick . | . . . . Crush . | . . . . Escape Stasis . | . . . . Rewire . | . . . . Trap . | . . . . Miscellaneous . | . . . . Route ------- -11/Scrapyard -10/Materials (discovered 3 exits: *Mat / *Min x2) -10/Mines -10/Subcaves History --------- Turn | Location | Event 17 | -11/Scrapyard | Discovered new exit (range 13) 96 | -11/Scrapyard | Entered Materials 186 | -10/Materials | Identified exit to Mines 313 | -10/Materials | Build established: Mutant 461 | -10/Materials | Discovered new exit (range 14) 482 | -10/Materials | Identified exit to Materials 847 | -10/Materials | Entered Mines 1021 | -10/Mines | Discovered new exit (range 14) 1051 | -10/Mines | Identified exit to Subcaves 1053 | -10/Mines | Entered Subcaves 1054 | -10/Subcaves | Approached by a straggling Scientist 1059 | -10/Subcaves | Core integrity fell below 50% 1101 | -10/Subcaves | Disturbed a concealed Subdweller 1122 | -10/Subcaves | Core integrity fell below 20% 1151 | -10/Subcaves | Destroyed by W3-5S5(R) with Subdweller Beam Cannon Last Messages --------------- 01063_ Disposable Heat Sink melted. 01063_ MD-J1A(R) destroyed. 01066_ Dropped Visual Processing Unit. 01067_ Tech Extrapolator violently self-destructs. 01070_ Acquired Machine Analyzer. 01071_ Acquired 6 matter. 01077_ Dropped Ion Engine. 01077_ Acquired Sub. Power Source. 01082_ Subatomizers dissect the Sub. Beam Cannon. 01092_ Subatomizers dissect the Ion Engine. 01101_ W3-5S5(R) angrily emerges from the Twisted Machinery. 01109_ Lgt. Nuclear Core destroyed. 01115_ Lgt. Treads destroyed. 01117_ Hvy. Assault Rifle destroyed. 01131_ Lgt. Treads destroyed. 01131_ Med. Laser destroyed. 01135_ Welding Torch destroyed. Map ----- +----------------------------------------------------+ | ????????????????????????????????????????????????? | | ????????????????????????????????????????????????? | | ????????????????????????????????????????????????? | | ????????????????????????????????????????????????? | | ????????????????????????????????????????????????? | | ????????????????????????????????????????????????? | | ????????????????????????????????????????????????? | | ????????????????????????????????????????????????? | | ????????????????????????????????????????????????? | | ????????????????????????????????????????????????? | | ????????????????????????????????????????????????? | | ????????????????????????????????????????????????? | | ????????????????????????????????????????????????? | | ????????????????????????????????????????????????? | | ????????????????????????????????????????????????? | | ????????????????????????????????????????????????? | | ????????????????????????????????????????????????? | | ????????????????????????????????????????????????? | | ????????????????????????????????????????????????? | | ?????????????????????##?????????????????????????? | | ?????????????????????#"?????????????????????????? | | ?????????????????????#&#????????????????????????? | | ?????????????????????? #???????????????????????? | | ??????????????????????# <###????????????????????? | | ?????????????????????## #; #????????????????????? | | ?????????????????????#< R@ ###??????????????????? | | ?????????????????????# ##?????????????????? | | ?????????????????????# ##????????????????? | | ?????????????????????# ##???????????????? | | ?????????????????????# ##??????????????? | | ????????????????????## #??????????????? | | ????????????????????# #??????????????? | | ????????????????????# ##??????????????? | | ????????????????????# #;???????????????? | | ????????????????????## ## ## ??????????????? | | ?????????????????????### #### ## ?????????????? | | ???????????????????????##?## ##?##????????????? | | ??????????????????????###?# #???????????????? | | ?????????????????????## ### #???????????????? | | ????????????????????## # #???????????????? | | ???????????????????## && ##???????????????? | | ???????????????????# !#% #????????????????? | | ???????????????????# #=]*##????????????????? | | ???????????????????# ## ##% #?????????????????? | | ???????????????????# #?# #?????????????????? | | ???????????????????##?# ## ###?????????????????? | | ??????????????????????# ###???????????????????? | | ??????????????????????# ??????????????????????? | | ?????????????????????? ??????????????????????? | | ?????????????????????? ?????????????????????? | +----------------------------------------------------+ Best States ------------- Heat Dissipation 25 Energy Generation 15 Energy Capacity 375 Matter Stores 300 Matter Capacity 300 Sight Range 16 Terrain Scan Density 10 Evasion (%) 50 Recoil Reduction 2 Item Schematics ----------------- None Robot Schematics ------------------ None Fabricated ------------ Nothing Repaired ---------- Nothing Studied --------- None Alien Tech Used ----------------- None Achievements -------------- None Challenges ------------ None Game ------ Seed SurveybotMakeshiftScreen Manual? 0 Play Time 00:26:51 Cumulative 35.2 hours Start 2026.02.13 @ 18:40:44 End 2026.02.13 @ 20:10:09 Sessions 1 Manual Loads 0 Difficulty Rogue Special Mode None Game No. 37 Rogue 37 Adventurer 0 Explorer 0 Win Type - Total 0 Types 0/0/0/0/0/0/0/0/0/0 Lore% 20 Gallery% 25 Achievement% 17 Wizard Run 0 Options --------- Layout 1 ASCII 0 Keyboard 0 Movement Mouse Keybinds 0 Fullscreen 1 Font 24/Smallcaps Map View 50x35 Zoom Use 0% Tactical HUD 1 Map Filters NONE Filters NONE Steam 1 RUN: 9c70f676-b696-49d7-9bfd-90b32b8e308b